bitfinex/quotes_ETHUSD_20240731
["timestamp","ask_amount","ask_price","bid_price","bid_amount"]
[1722396449492,1.91060542,3298.6,3298.0,8.536]
[1722396449705,0.19279758,3298.4,3298.0,8.536]
[1722396450027,1.91060542,3298.5,3298.0,9.97739455]
[1722396450322,0.19283518,3298.3,3298.0,9.97739455]
[1722396450565,1.91060542,3298.5,3298.1,3.03204]
[1722396450825,0.19283518,3298.2,3298.1,3.03204]
[1722396450987,1.91060542,3298.5,3298.1,3.03204]
[1722396451322,0.19283518,3298.2,3298.0,13.00949455]
[1722396451626,0.19283518,3298.1,3298.0,13.00949455]
[1722396451789,4.94228542,3298.5,3298.0,13.00949455]
[1722396451989,0.19283518,3298.1,3298.0,11.5681]
[1722396452190,1.91060542,3298.2,3298.0,8.536]
[1722396452494,0.19283518,3298.1,3298.0,7.41]
[1722396452880,2.10398335,3298.1,3298.0,7.41]
[1722396453083,1.91114817,3298.1,3297.7,1.126]
[1722396453334,1.9110157,3297.9,3297.7,1.126]
[1722396453624,0.19277152,3297.8,3297.7,1.126]
[1722396453840,1.9110157,3298.0,3297.7,1.126]
[1722396454143,0.19276863,3297.8,3297.7,1.126]
[1722396454332,1.91046072,3297.9,3297.7,4.15836]
[1722396454501,0.19276863,3297.8,3297.7,5.105049]
[1722396454725,0.19276863,3297.8,3297.7,4.15836]
[1722396455224,1.91030015,3298.0,3297.7,4.15836]
[1722396455387,0.19276863,3297.8,3297.7,4.15836]
[1722396455587,1.91030015,3298.0,3297.7,4.15836]
[1722396455900,0.19276863,3297.8,3297.7,4.15836]
[1722396456101,3.032,3298.2,3297.7,4.15836]
[1722396456102,1.91028541,3298.1,3297.7,4.15836]
[1722396456327,0.19276863,3297.8,3297.7,1.126]
[1722396456842,4.94234541,3298.1,3297.7,1.126]
[1722396456984,0.19269917,3297.8,3297.7,1.126]
[1722396457190,1.91028541,3298.0,3297.7,1.126]
[1722396457419,0.19269917,3297.8,3297.7,1.126]
[1722396457624,1.91028541,3298.0,3297.7,1.126]
[1722396457819,0.19269917,3297.8,3297.7,1.126]
[1722396457997,1.91028541,3298.0,3297.7,1.126]
[1722396458215,0.19269917,3297.8,3297.7,4.80185]
[1722396458408,1.91028541,3298.1,3297.7,4.80185]
[1722396458737,0.19269917,3297.8,3297.7,4.80185]
[1722396458939,1.91028541,3298.1,3297.7,4.80185]
[1722396459139,0.19269917,3297.8,3297.7,4.80185]
[1722396459349,3.03197,3298.2,3297.7,4.80185]
[1722396459641,1.9098407,3298.1,3297.7,4.15839]
[1722396459857,2.10253987,3298.1,3297.7,4.15839]
[1722396460635,2.10253987,3298.1,3297.9,1.126]
[1722396461655,0.19269917,3298.1,3297.9,1.126]
[1722396462151,2.10253987,3298.1,3297.9,1.126]
[1722396462445,2.10253987,3298.1,3297.7,1.126]
[1722396462649,3.0322,3298.0,3297.7,1.126]
[1722396462812,2.72643152,3298.0,3297.4,7.41]
[1722396463009,4.94059793,3297.7,3297.4,7.41]
[1722396463227,3.03254,3297.6,3297.4,7.41]
[1722396463435,3.03254,3297.6,3297.4,7.40062446]
[1722396463634,0.19256316,3297.5,3297.4,7.38141289]
[1722396464738,1.90738537,3297.8,3297.4,8.48396859]
[1722396464942,0.19255447,3297.5,3297.4,11.51661859]
[1722396465126,1.90661413,3297.8,3297.5,3.03259]
[1722396465436,1.90661413,3298.0,3297.8,3.03232]
[1722396465673,1.90661413,3298.2,3297.8,4.15827]
[1722396465857,1.90661413,3298.3,3298.1,1.126]
[1722396466017,1.90667601,3298.4,3298.1,1.126]
[1722396466616,1.90667601,3298.5,3298.3,1.126]
[1722396467132,1.90667601,3298.6,3298.3,1.126]
[1722396467451,4.93826601,3298.6,3298.2,2.3114]
[1722396468222,3.03159,3298.6,3298.2,2.3114]
[1722396468554,1.90696108,3298.6,3298.2,2.3114]
[1722396468858,4.90696108,3298.6,3298.2,2.3114]
[1722396469226,3.0,3298.6,3298.2,2.3114]
[1722396469466,4.90684818,3298.6,3298.2,2.3114]
[1722396470000,4.90684818,3298.6,3298.2,5.34334]
[1722396471817,4.90684818,3298.6,3298.2,2.3114]
[1722396471967,5.732377,3298.5,3298.0,2.4721]
[1722396472173,1.90684818,3298.4,3298.0,2.4721]
[1722396472373,4.93862818,3298.4,3298.0,2.4721]
[1722396472562,1.90630615,3298.3,3298.0,2.4721]
[1722396472767,1.90630615,3298.4,3298.0,2.4721]
[1722396472999,1.90630615,3298.3,3298.0,2.4721]
[1722396473224,3.82552882,3298.5,3298.0,2.4721]
[1722396473225,1.90632864,3298.4,3298.0,2.4721]
[1722396473415,1.90632864,3298.3,3298.0,2.4721]
[1722396474412,1.90632864,3298.4,3298.0,2.4721]
[1722396475023,1.90633906,3298.4,3298.0,2.4721]
[1722396475517,4.93812906,3298.4,3298.0,2.4721]
[1722396475945,4.93821244,3298.4,3297.8,12.79433859]
[1722396476236,4.93821244,3298.4,3297.9,3.09285531]
[1722396476431,4.93821244,3298.4,3297.9,6.12501531]
[1722396476741,1.90642244,3298.4,3297.9,3.09279531]
[1722396476979,1.90642244,3298.3,3297.9,3.09279531]
[1722396477145,1.90642244,3298.3,3297.8,9.76206859]
[1722396477146,4.93829244,3298.3,3297.8,9.76206859]
[1722396477327,4.93829244,3298.3,3297.8,12.79437859]
[1722396477638,3.22463683,3298.2,3297.8,9.76206859]
[1722396477849,4.93847244,3298.1,3297.8,7.35796859]
[1722396478016,5.1311282,3298.1,3297.8,7.35796859]
[1722396478527,3.22470576,3298.1,3297.8,7.35796859]
[1722396478931,3.03223,3297.9,3297.8,7.35796859]
[1722396479131,4.93845825,3297.9,3297.8,7.35796859]
[1722396479296,4.04109541,3297.9,3297.8,7.35796859]
[1722396480942,5.94718388,3297.9,3297.8,7.35796859]
[1722396481316,4.04109541,3297.9,3297.8,7.35796859]
[1722396481499,5.94724012,3297.9,3297.8,7.35796859]
[1722396481855,4.59109541,3297.9,3297.8,7.35796859]
[1722396482137,6.49699267,3297.9,3297.8,7.35796859]
[1722396483036,6.49699267,3297.9,3297.2,5.35169]
[1722396483247,3.58233,3297.8,3297.3,3.03277]
[1722396483735,0.19254001,3297.7,3297.3,3.03277]
[1722396484033,3.03242,3297.7,3297.2,2.3189]
[1722396484238,0.19243578,3297.6,3297.2,2.3189]
[1722396485043,0.19243578,3297.6,3297.2,5.35175]
[1722396485245,0.19243578,3297.6,3297.2,2.3189]
[1722396485453,3.22494578,3297.6,3297.2,2.3189]
[1722396485842,5.13049407,3297.6,3297.2,2.3189]
[1722396486351,5.13049407,3297.6,3297.0,15.68374859]
[1722396486537,3.22494578,3297.6,3297.0,5.29278]
[1722396487272,3.22494578,3297.6,3297.1,3.03295]
[1722396487476,3.22494578,3297.6,3297.0,2.2598]
[1722396487477,3.0326,3297.5,3297.0,2.2598]
[1722396487773,0.1923142,3297.5,3297.0,5.29277]
[1722396487949,0.1923142,3297.5,3297.1,3.03294]
[1722396488145,4.93711068,3297.7,3297.1,3.03294]
[1722396488354,0.1923142,3297.4,3297.1,3.03294]
[1722396488572,3.0325,3297.7,3297.1,3.03294]
[1722396488737,0.1923142,3297.3,3297.1,3.03294]
[1722396488941,3.0325,3297.6,3297.1,3.03294]
[1722396489137,0.1923142,3297.2,3297.1,3.03294]
[1722396489472,3.0325,3297.6,3297.2,1.062]
[1722396490679,4.71321068,3297.8,3297.2,3.5388]
[1722396490862,5.84097,3297.8,3297.2,3.5388]
[1722396491069,5.84097,3297.8,3297.2,6.57164]
[1722396491267,5.48671774,3297.8,3297.2,9.60446]
[1722396491466,5.48671774,3297.8,3297.4,1.062]
[1722396492503,0.1922679,3297.7,3297.4,1.062]
[1722396492795,0.55,3297.6,3297.4,1.062]
[1722396492954,0.1922679,3297.6,3297.4,1.062]
[1722396493393,4.93680774,3297.7,3297.4,1.062]
[1722396493595,0.1922679,3297.5,3297.2,3.5388]
[1722396493987,0.55,3297.6,3297.2,3.5388]
[1722396494165,3.0326,3297.5,3297.2,1.062]
[1722396494374,3.03269,3297.4,3296.8,3.03319]
[1722396494610,3.2249579,3297.4,3296.9,4.09514]
[1722396494810,3.03278,3297.3,3296.9,1.062]
[1722396495009,0.19220128,3297.3,3296.7,8.41996859]
[1722396495601,2.09654902,3297.3,3296.7,8.41996859]
[1722396495900,3.03288,3297.2,3296.7,11.45324859]
[1722396496101,0.19220128,3297.3,3296.9,1.062]
[1722396496268,4.93703774,3297.4,3296.9,1.062]
[1722396496462,0.19220128,3297.2,3296.9,1.062]
[1722396496654,1.90434774,3297.5,3296.9,3.03313]
[1722396496858,1.90434774,3297.5,3297.3,1.062]
[1722396497157,3.55,3297.6,3297.3,1.062]
[1722396497353,5.45434774,3297.6,3297.3,1.062]
[1722396497587,3.55,3297.6,3297.3,1.062]
[1722396497812,5.45505706,3297.6,3297.3,1.062]
[1722396498101,3.55,3297.6,3297.3,1.062]
[1722396500389,4.90505706,3297.8,3297.6,3.03249]
[1722396500581,1.90505706,3298.0,3297.7,1.062]
[1722396500983,1.90456408,3298.0,3297.7,1.062]
[1722396501512,6.0321,3298.1,3297.7,1.062]
[1722396501686,1.90449433,3297.9,3297.5,4.09458]
[1722396501887,3.0,3297.9,3297.5,4.09458]
[1722396502074,4.90449433,3297.9,3297.5,4.09458]
[1722396502473,4.90449433,3297.9,3297.7,3.03241]
[1722396502703,2.45449433,3298.0,3297.5,4.09458]
[1722396503330,6.30315276,3298.0,3297.4,3.03269]
[1722396503620,6.30315276,3298.0,3297.3,3.5426]
[1722396503621,1.90465334,3297.8,3297.3,3.5426]
[1722396503818,1.90465334,3297.8,3297.3,6.57534]
[1722396503974,3.03232,3297.8,3297.3,6.57534]
[1722396504178,4.93698338,3297.8,3297.3,6.57534]
[1722396504505,4.93698338,3297.8,3297.3,3.5426]
[1722396504704,0.55,3297.7,3297.3,3.5426]
[1722396505102,0.55,3297.7,3297.3,6.57537]
[1722396505324,0.55,3297.7,3297.4,3.03267]
[1722396505479,0.55,3297.7,3297.4,3.03262]
[1722396505674,0.55,3297.8,3297.5,3.0326]
[1722396507229,0.55,3297.8,3297.3,6.57532]
[1722396507431,0.19224472,3297.7,3297.3,9.60803]
[1722396507594,3.58232,3297.8,3297.2,3.03286]
[1722396507798,0.84869134,3297.7,3297.3,3.03277]
[1722396507992,1.04093606,3297.7,3297.3,3.03277]
[1722396508487,4.07339606,3297.7,3297.2,1.062]
[1722396508695,5.97810395,3297.7,3297.2,1.062]
[1722396508927,3.9885984,3297.6,3297.0,11.45296859]
[1722396509227,3.77488658,3297.5,3297.0,4.095]
[1722396509574,6.80755658,3297.5,3297.0,1.062]
[1722396509834,8.71227447,3297.5,3297.0,1.062]
[1722396510401,3.03269,3297.4,3297.0,1.062]
[1722396510722,0.19222445,3297.3,3297.0,1.062]
[1722396510907,3.22503445,3297.3,3296.8,6.38561]
[1722396511323,6.25788445,3297.3,3296.8,6.38561]
[1722396511496,3.03288,3297.2,3296.8,1.062]
[1722396511878,0.19213759,3297.1,3296.8,1.062]
[1722396512890,0.19213759,3297.1,3296.5,5.31495]
[1722396513093,0.19213759,3297.1,3296.7,1.062]
[1722396514290,0.19213759,3297.1,3296.7,4.09527]
[1722396514510,0.19213759,3297.1,3296.8,3.03323]
[1722396514947,7.96968992,3297.4,3296.8,3.03323]
[1722396515243,3.58278,3297.3,3296.8,3.03323]
[1722396515455,0.74206809,3297.3,3297.0,3.033]
[1722396515588,0.19206809,3297.3,3297.2,3.03287]
[1722396515786,4.90419992,3297.8,3297.3,3.03272]
[1722396516049,0.68243307,3297.7,3297.4,1.062]
[1722396516205,0.68243307,3297.7,3297.2,4.09487]
[1722396516405,2.096213,3297.7,3297.2,4.0948]
[1722396516611,0.19201308,3297.7,3297.2,4.0948]
[1722396516858,0.19201308,3297.7,3297.3,3.03277]
[1722396517136,4.90419992,3297.9,3297.3,3.03277]
[1722396517339,0.19201308,3297.6,3297.4,3.03268]
[1722396517650,0.19201308,3297.5,3297.2,3.03279]
[1722396517826,3.0,3297.7,3297.3,3.03271]
[1722396518032,0.19201308,3297.4,3297.3,3.03271]
[1722396518233,3.0,3297.7,3297.3,3.03271]
[1722396518452,0.19201308,3297.4,3297.3,3.03271]
[1722396518627,3.0,3297.7,3297.3,3.03271]
[1722396518831,0.19201308,3297.4,3297.1,5.30688]
[1722396519145,1.9053936,3297.6,3297.1,5.30688]
[1722396519308,0.19201308,3297.3,3297.1,5.30688]
[1722396519636,0.19201308,3297.2,3296.9,3.0331]
[1722396519852,4.9380236,3297.5,3297.0,3.03301]
[1722396520007,0.19212022,3297.1,3297.0,3.03301]
[1722396520208,1.9053936,3297.5,3297.1,3.03292]
[1722396520428,4.1554936,3297.6,3297.1,3.03292]
[1722396520635,2.2501,3297.6,3297.1,3.03292]
[1722396520906,1.90645527,3297.5,3297.1,3.03292]
[1722396521152,2.2501,3297.6,3297.1,3.03292]
[1722396521359,1.90647303,3297.5,3297.1,3.03292]
[1722396521711,1.90647303,3297.5,3296.9,3.03314]
[1722396521912,1.90647303,3297.5,3296.9,3.03308]
[1722396522370,1.90647303,3297.4,3296.9,6.06616]
[1722396522598,2.0985643,3297.4,3296.9,6.06616]
[1722396522863,2.0985643,3297.4,3297.0,3.03305]
[1722396523063,0.19209127,3297.4,3297.0,3.03305]
[1722396523263,2.0994342,3297.4,3297.0,3.03305]
[1722396523967,0.19209127,3297.4,3297.0,3.03305]
[1722396524265,2.09977831,3297.4,3297.0,3.03305]
[1722396526045,2.09977831,3297.4,3296.8,3.03322]
[1722396526248,2.45768704,3297.3,3296.8,3.03322]
[1722396526533,2.64978699,3297.3,3296.9,3.03314]
[1722396526945,5.68256699,3297.3,3296.7,12.73643859]
[1722396527391,3.77487995,3297.3,3296.7,12.73643859]
[1722396527528,1.90838061,3297.2,3296.7,12.73643859]
[1722396527973,1.90838061,3297.2,3296.8,3.03323]
[1722396528246,0.19209995,3297.1,3296.8,3.03323]
[1722396528448,3.58278,3297.3,3296.8,3.03323]
[1722396528649,0.19209995,3297.0,3296.8,3.03323]
[1722396528869,1.90841829,3297.2,3296.8,3.03323]
[1722396529076,3.58278,3297.3,3296.8,3.03323]
[1722396529077,0.19209995,3296.9,3296.8,3.03323]
[1722396529269,5.49119829,3297.3,3296.8,3.03323]
[1722396529586,0.19209995,3296.9,3296.8,3.03323]
[1722396529812,1.90841829,3297.2,3296.8,3.03323]
[1722396529996,0.19209995,3296.9,3296.8,3.03323]
[1722396530199,1.90841829,3297.2,3296.8,3.03323]
[1722396530369,0.19209995,3296.9,3296.8,3.03323]
[1722396530564,1.90841829,3297.2,3296.8,3.03323]
[1722396530794,0.19209995,3296.9,3296.8,3.03323]
[1722396530993,1.9085569,3297.2,3296.8,3.03323]
[1722396531193,0.19209995,3296.9,3296.8,3.03323]
[1722396531397,1.9085804,3297.2,3296.8,3.03323]
[1722396531597,0.19209995,3296.9,3296.8,3.03323]
[1722396531784,1.9085804,3297.2,3296.8,3.03323]
[1722396532100,1.9085804,3297.2,3296.6,3.03337]
[1722396532101,4.9414604,3297.2,3296.6,3.03337]
[1722396532420,2.10068035,3297.1,3296.6,3.03337]
[1722396533474,2.10068035,3297.1,3296.6,6.06673]
[1722396533804,2.10068035,3297.1,3296.7,3.03333]
[1722396534236,2.10067019,3297.1,3296.7,3.03333]
[1722396535707,2.10067019,3297.1,3296.6,3.03336]
[1722396536018,0.19209995,3297.1,3296.9,3.03309]
[1722396536304,0.19209995,3297.1,3297.0,3.03306]
[1722396536609,1.90857024,3297.3,3297.0,3.03306]
[1722396537108,0.19201305,3297.2,3297.0,3.03306]
[1722396537327,1.90857024,3297.3,3297.0,3.03306]
[1722396537537,0.19201305,3297.1,3297.0,3.03306]
[1722396537689,1.90852011,3297.3,3297.0,3.03306]
[1722396537891,0.19201305,3297.1,3297.0,3.03306]
[1722396538089,1.90852011,3297.3,3297.0,3.03306]
[1722396538341,0.19201305,3297.1,3297.0,6.06612]
[1722396538539,1.90852011,3297.5,3297.3,3.03278]
[1722396538909,1.90852011,3297.5,3297.2,0.06065075]
[1722396539098,1.90852011,3297.5,3297.3,3.03276]
[1722396539099,1.9086453,3297.5,3297.3,3.03276]
[1722396539293,1.9086453,3297.5,3297.4,1.062]
[1722396539934,8.25916285,3297.7,3297.4,1.062]
[1722396540117,9.63140514,3297.7,3297.4,1.062]
[1722396540736,2.22652226,3297.6,3297.2,4.09484]
[1722396541067,1.90847049,3297.4,3297.2,4.09484]
[1722396541224,1.90849,3297.4,3297.2,4.09484]
[1722396542237,1.90849,3297.4,3297.2,1.062]
[1722396542808,6.03243,3297.7,3297.2,1.062]
[1722396543137,1.9085469,3297.4,3297.2,1.062]
[1722396543696,1.9085469,3297.3,3297.2,1.062]
[1722396543907,1.9085469,3297.4,3297.2,1.062]
[1722396544108,1.9085469,3297.3,3297.2,1.062]
[1722396544319,1.9085469,3297.4,3297.2,1.062]
[1722396545171,1.9085469,3297.3,3297.2,1.062]
[1722396545348,1.9085469,3297.4,3297.2,1.062]
[1722396546240,9.06491,3297.7,3297.2,1.062]
[1722396546557,1.90803197,3297.4,3297.2,1.062]
[1722396546738,5.2260373,3297.7,3297.2,1.062]
[1722396546739,1.90803197,3297.3,3297.2,1.062]
[1722396547647,3.03265,3297.5,3296.8,10.39120859]
[1722396547648,3.03276,3297.4,3296.8,10.39120859]
[1722396547847,5.2586873,3297.5,3297.0,1.062]
[1722396547848,1.90802584,3297.2,3297.0,1.062]
[1722396548645,1.90802584,3297.1,3296.8,8.41996859]
[1722396548982,1.90802584,3297.1,3296.8,7.35796859]
[1722396549687,4.94032152,3297.1,3296.8,7.35796859]
[1722396549886,1.90736152,3296.9,3296.8,7.35796859]
[1722396550179,3.03306,3297.0,3296.6,1.062]
[1722396550366,1.9070425,3296.8,3296.6,1.062]
[1722396550571,1.9070425,3296.8,3296.4,1.062]
[1722396550572,1.9070425,3296.7,3296.4,1.062]
[1722396550769,1.90683459,3296.7,3296.4,1.062]
[1722396552515,0.19190302,3296.6,3296.4,1.062]
[1722396552867,1.90601953,3296.7,3296.4,1.062]
[1722396553212,3.03329,3296.8,3296.4,1.062]
[1722396553379,0.19190302,3296.6,3296.4,1.062]
[1722396553564,4.93906637,3296.8,3296.4,1.062]
[1722396553760,0.19190302,3296.5,3296.4,1.062]
[1722396553960,4.93906637,3296.8,3296.4,1.062]
[1722396554323,0.19190302,3296.5,3296.4,1.062]
[1722396554498,4.93906637,3296.8,3296.4,1.062]
[1722396554813,0.19190302,3296.7,3296.4,1.062]
[1722396555180,4.93906637,3296.8,3296.4,1.062]
[1722396555374,0.19190302,3296.6,3296.4,1.062]
[1722396555693,0.19185089,3296.5,3296.4,1.062]
[1722396556582,4.93877605,3296.8,3296.4,1.062]
[1722396556787,0.19185089,3296.5,3296.4,1.062]
[1722396557001,4.93877605,3296.8,3296.4,1.062]
[1722396557197,0.19185089,3296.5,3296.4,1.062]
[1722396557413,4.93877605,3296.8,3296.4,1.062]
[1722396557711,4.93877605,3296.8,3296.6,1.062]
[1722396558610,0.19185089,3296.7,3296.6,1.062]
[1722396559478,4.93835074,3296.7,3296.4,1.062]
[1722396559666,5.13020163,3296.7,3296.4,1.062]
[1722396559894,1.90502074,3296.6,3296.4,1.062]
[1722396560082,4.93835074,3296.7,3296.4,1.062]
[1722396560420,0.19185089,3296.6,3296.4,1.062]
[1722396560578,1.90502074,3296.7,3296.4,1.062]
[1722396560778,4.93832074,3296.8,3296.4,1.062]
[1722396560979,5.13034163,3296.6,3296.4,1.062]
[1722396561191,1.90502074,3296.6,3296.2,8.41996859]
[1722396562514,3.03386,3296.2,3295.9,0.1460555]
[1722396562723,3.0337,3296.3,3295.9,0.1460555]
[1722396562929,3.03379,3296.2,3295.9,0.1460555]
[1722396563432,3.22547864,3296.2,3295.9,0.1460555]
[1722396565809,6.25933864,3296.2,3295.9,0.1460555]
[1722396566188,3.22547864,3296.2,3295.9,0.1460555]
[1722396568314,4.04163349,3296.2,3295.9,0.1460555]
[1722396570011,3.03395,3296.1,3295.9,0.1460555]
[1722396570408,0.19168864,3296.0,3295.9,0.1460555]
[1722396572531,6.25964864,3296.0,3295.9,0.1460555]
[1722396572738,6.80964864,3296.0,3295.9,0.1460555]
[1722396573066,7.81783899,3296.0,3295.9,0.1460555]
[1722396576540,8.87983899,3296.0,3295.9,0.1460555]
[1722396577084,7.81783899,3296.0,3295.9,0.1460555]
[1722396577373,10.81783899,3296.0,3295.9,0.1460555]
[1722396592468,12.71392667,3296.0,3295.9,0.1460555]
[1722396592783,12.71503535,3296.0,3295.9,0.1460555]
[1722396593296,10.81783899,3296.0,3295.9,0.1460555]
[1722396593422,13.85181899,3296.0,3295.9,0.1451325]
[1722396593637,10.81783899,3296.0,3295.9,0.1451325]
[1722396594961,13.85181899,3296.0,3295.9,0.1451325]
[1722396597650,14.16254384,3296.0,3295.9,0.1451325]
[1722396597849,16.63084384,3296.0,3295.9,0.1451325]
[1722396599233,16.63089695,3296.0,3295.9,0.1451325]
[1722396599868,25.31401481,3296.0,3295.9,0.1451325]
[1722396600036,22.69885695,3296.0,3295.9,0.1451325]
[1722396600949,23.34198482,3296.0,3295.9,0.1451325]
[1722396601571,20.30827019,3296.0,3295.9,0.1451325]
[1722396601942,19.99747004,3296.0,3295.9,0.1451325]
[1722396602137,20.30822359,3296.0,3295.9,0.1451325]
[1722396602685,10.57859254,3296.0,3295.9,0.1451325]
[1722396602888,9.57040219,3296.0,3295.9,0.1451325]
[1722396603055,11.47394438,3296.0,3295.9,0.1451325]
[1722396603256,11.78460066,3296.0,3295.9,0.1451325]
[1722396603483,11.47394438,3296.0,3295.9,0.1451325]
[1722396603651,3.22566864,3296.0,3295.9,0.1451325]
[1722396603873,0.19168864,3296.0,3295.9,3.7012325]
[1722396604046,0.19168864,3296.0,3295.9,4.37477075]
[1722396604047,2.09068255,3296.0,3295.9,4.37477075]
[1722396604608,0.19168864,3296.0,3295.9,2.6392325]
[1722396605397,3.22566864,3296.0,3295.9,0.1451325]
[1722396605546,6.22566864,3296.0,3295.9,0.1451325]
[1722396606089,6.77566864,3296.0,3295.9,0.1450981]
[1722396606264,3.74168864,3296.0,3295.9,0.1450981]
[1722396606467,6.77566864,3296.0,3295.9,0.1450981]
[1722396608243,3.74168864,3296.0,3295.9,0.1450981]
[1722396608578,6.77566864,3296.0,3295.9,0.1450981]
[1722396608894,11.01972392,3296.0,3295.9,0.1450981]
[1722396610189,7.08634945,3296.0,3295.9,0.1450981]
[1722396610537,9.3057816,3296.0,3295.9,0.1450981]
[1722396610764,7.08634945,3296.0,3295.9,0.1450981]
[1722396610984,6.77566864,3296.0,3295.9,0.1450981]
[1722396611283,7.08646031,3296.0,3295.9,0.1450981]
[1722396611458,6.77566864,3296.0,3295.9,0.1450981]
[1722396611653,7.08649361,3296.0,3295.9,0.1450981]
[1722396612557,4.05251361,3296.0,3295.9,0.1450981]
[1722396612779,4.05251361,3296.0,3295.9,2.6058981]
[1722396612780,3.27285758,3296.0,3295.9,2.6058981]
[1722396612979,2.96203261,3296.0,3295.9,2.6058981]
[1722396613180,3.27280627,3296.0,3295.9,2.6058981]
[1722396613410,4.0864423,3296.0,3295.9,0.1450981]
[1722396613572,4.08651544,3296.0,3295.9,0.1450981]
[1722396613771,8.39483515,3296.0,3295.9,0.1450981]
[1722396613974,11.0177768,3296.0,3295.9,0.1450981]
[1722396614315,8.39492546,3296.0,3295.9,0.1450981]
[1722396614612,11.01813074,3296.0,3295.9,0.1450981]
[1722396615369,8.39492546,3296.0,3295.9,0.1450981]
[1722396616073,1.05262575,3296.0,3295.9,2.5566981]
[1722396616376,3.27404703,3296.0,3295.9,2.5566981]
[1722396616777,2.72404703,3296.0,3295.9,2.5566981]
[1722396617097,0.19168864,3296.0,3295.9,5.5907681]
[1722396617302,0.19168864,3296.0,3295.9,2.5566981]
[1722396617801,0.18326343,3296.0,3295.9,2.5566981]
[1722396618000,0.49401284,3296.0,3295.9,2.5566981]
[1722396618713,4.4431693,3296.0,3295.9,0.1450981]
[1722396618897,8.0271493,3296.0,3295.9,0.1450981]
[1722396620013,10.65131104,3296.0,3295.9,0.1450981]
[1722396620256,8.0271493,3296.0,3295.9,0.1450981]
[1722396620413,10.5164493,3296.0,3295.9,0.1450981]
[1722396620613,10.20569989,3296.0,3295.9,0.1450981]
[1722396620849,10.51665764,3296.0,3295.9,0.1450981]
[1722396621356,10.5167062,3296.0,3295.9,0.1450981]
[1722396622257,10.65259338,3296.0,3295.9,0.1450981]
[1722396622423,0.49426974,3296.0,3295.9,0.1450981]
[1722396623996,2.71779602,3296.0,3295.9,3.1791681]
[1722396624144,0.18326343,3296.0,3295.9,6.2132381]
[1722396624446,0.18326343,3296.0,3295.9,7.07557969]
[1722396624646,0.18326343,3296.0,3295.9,12.46284969]
[1722396624857,1.90594499,3296.2,3296.1,6.06776]
[1722396625043,1.90594499,3296.3,3296.2,3.03379]
[1722396625246,2.22355103,3296.6,3296.2,3.03379]
[1722396625247,2.22355103,3296.6,3296.4,3.03361]
[1722396625443,2.22355103,3296.6,3296.4,3.64035]
[1722396625643,2.22355103,3296.6,3296.5,3.03352]
[1722396625861,2.50598866,3296.6,3296.5,5.38672]
[1722396626335,2.22355103,3296.6,3296.5,5.38672]
[1722396626545,2.22355103,3296.7,3296.5,5.38672]
[1722396627039,2.22355103,3296.6,3296.5,5.38672]
[1722396627272,2.22355103,3296.7,3296.5,5.38672]
[1722396628400,2.22355103,3296.7,3296.5,2.3532]
[1722396628740,2.22355103,3296.7,3296.5,5.3867]
[1722396628945,2.22355103,3296.8,3296.7,3.03333]
[1722396629380,2.22355103,3296.8,3296.5,5.38663]
[1722396629745,2.22355103,3296.8,3296.7,3.03333]
[1722396630260,2.22355103,3296.9,3296.7,3.03333]
[1722396630946,2.22136156,3296.9,3296.7,3.03333]
[1722396631160,1.90429319,3296.9,3296.7,3.03333]
[1722396632002,1.90429319,3296.9,3296.5,2.3532]
[1722396632181,1.90429319,3296.9,3296.5,5.38669]
[1722396632363,1.90429319,3296.9,3296.6,3.0334]
[1722396632702,0.18388773,3296.8,3296.6,3.0334]
[1722396633076,0.18388773,3296.8,3296.5,2.3532]
[1722396633290,2.08699589,3296.8,3296.5,5.38671]
[1722396633467,0.18388773,3296.8,3296.5,5.38671]
[1722396633664,2.08664457,3296.8,3296.5,5.38671]
[1722396633892,1.90275684,3296.9,3296.5,5.38671]
[1722396634091,0.18388773,3296.7,3296.5,5.38671]
[1722396634302,1.90275684,3296.9,3296.5,5.38671]
[1722396634454,0.18388773,3296.6,3296.5,2.3532]
[1722396634966,4.93595684,3296.9,3296.3,3.03366]
[1722396635168,0.18388773,3296.6,3296.3,3.03363]
[1722396635367,1.90275684,3296.9,3296.4,3.03361]
[1722396635563,1.90275684,3296.9,3296.5,3.03351]
[1722396635777,1.90275684,3297.0,3296.5,3.03345]
[1722396636103,0.55,3296.9,3296.3,3.03364]
[1722396636297,0.55,3296.9,3296.4,3.03359]
[1722396637078,0.55,3296.9,3296.5,3.03348]
[1722396637276,0.55,3296.9,3296.6,3.03341]
[1722396637469,0.55,3297.0,3296.6,3.03336]
[1722396637884,2.45227828,3297.0,3296.5,3.0335]
[1722396638083,3.55,3297.0,3296.6,3.0334]
[1722396638313,0.55,3297.0,3296.6,3.0334]
[1722396639316,2.45227828,3297.0,3296.6,3.0334]
[1722396639620,5.45227828,3297.0,3296.6,3.03336]
[1722396639919,8.48533828,3297.0,3296.4,3.03353]
[1722396640117,7.43157783,3297.0,3296.4,3.03353]
[1722396640279,9.33319167,3297.0,3296.4,3.03353]
[1722396640686,9.33275817,3297.0,3296.4,3.03353]
[1722396641019,9.33275817,3297.0,3296.5,3.03351]
[1722396641318,8.48424034,3297.0,3296.5,3.03351]
[1722396642392,5.45118034,3297.0,3296.5,3.03351]
[1722396642599,2.45118034,3297.0,3296.5,3.03351]
[1722396642918,2.45118034,3297.0,3296.3,3.03362]
[1722396643110,0.54511803,3296.9,3296.4,3.03361]
[1722396643621,3.57827803,3296.9,3296.3,3.03362]
[1722396643787,3.57827803,3296.9,3296.3,6.06726]
[1722396644497,3.57827803,3296.9,3296.4,3.03359]
[1722396644909,2.45084699,3297.0,3296.5,3.03351]
[1722396645421,2.45084699,3297.0,3296.5,3.03347]
[1722396645622,3.0,3297.0,3296.7,3.03328]
[1722396645799,4.90084699,3297.1,3296.7,3.03328]
[1722396646123,3.0,3297.1,3296.7,3.03327]
[1722396646422,1.90084699,3297.5,3297.3,3.03272]
[1722396646631,3.03224,3297.9,3297.3,3.03272]
[1722396646846,4.93374149,3297.9,3297.3,3.03272]
[1722396647517,0.18396354,3297.8,3297.3,3.03272]
[1722396648426,3.21628354,3297.8,3297.3,3.03272]